bitfinex/quotes_BTCUSD_20240703
["timestamp","ask_amount","ask_price","bid_price","bid_amount"]
[1720015305617,0.04921851,60694.0,60689.0,0.03123175]
[1720015306097,0.09843702,60697.0,60688.0,0.1602988]
[1720015306098,0.04921464,60696.0,60695.0,0.0455]
[1720015306320,0.07382264,60698.0,60695.0,0.0455]
[1720015306321,0.07382264,60698.0,60697.0,0.03123175]
[1720015306518,0.04917989,60701.0,60699.0,0.03123175]
[1720015306754,0.04917789,60703.0,60700.0,0.1602988]
[1720015306966,0.04917789,60704.0,60703.0,0.03123175]
[1720015307180,0.002,60709.0,60708.0,0.03123175]
[1720015307445,0.12300053,60727.0,60724.0,0.03123175]
[1720015307652,0.002,60729.0,60726.0,0.1602988]
[1720015308071,0.164671,60727.0,60726.0,0.1602988]
[1720015308298,0.823355,60727.0,60726.0,0.1602988]
[1720015309290,0.823355,60727.0,60720.0,0.0164]
[1720015309291,1.152812,60721.0,60720.0,0.0164]
[1720015309494,0.69310474,60727.0,60712.0,0.1602988]
[1720015309495,0.494127,60713.0,60712.0,0.1602988]
[1720015309716,0.823545,60713.0,60712.0,0.1602988]
[1720015309946,1.152963,60713.0,60712.0,0.1602988]
[1720015310171,1.252963,60713.0,60712.0,0.1602988]
[1720015310403,0.1,60713.0,60696.0,0.15713545]
[1720015310610,0.1,60713.0,60698.0,0.1602988]
[1720015310611,0.329479,60702.0,60698.0,0.1602988]
[1720015310828,0.1,60713.0,60701.0,0.1602988]
[1720015311047,0.1,60712.0,60703.0,0.1602988]
[1720015311268,0.164733,60704.0,60703.0,0.1602988]
[1720015311484,0.823667,60704.0,60703.0,0.1602988]
[1720015311717,1.253134,60704.0,60703.0,0.1602988]
[1720015312321,1.253134,60704.0,60703.0,0.1612988]
[1720015313248,0.5942,60704.0,60703.0,0.1612988]
[1720015313699,1.253134,60704.0,60703.0,0.1612988]
[1720015313948,1.253134,60704.0,60695.0,0.0158]
[1720015313949,0.823777,60696.0,60695.0,0.0158]
[1720015314179,0.164764,60693.0,60689.0,0.1602988]
[1720015314413,0.329522,60694.0,60689.0,0.1602988]
[1720015314628,0.164761,60694.0,60689.0,0.1602988]
[1720015314833,0.164767,60692.0,60689.0,0.1602988]
[1720015315121,0.164762,60694.0,60690.0,0.03123175]
[1720015315305,0.164762,60694.0,60691.0,0.1602988]
[1720015315535,0.159762,60694.0,60691.0,0.1602988]
[1720015315765,0.329519,60695.0,60691.0,0.1602988]
[1720015316012,0.164766,60692.0,60691.0,0.1602988]
[1720015316215,0.164766,60692.0,60691.0,0.19153055]
[1720015316420,0.164766,60692.0,60691.0,0.1602988]
[1720015316849,0.164766,60692.0,60673.0,0.0646]
[1720015316850,0.6744,60692.0,60673.0,0.0646]
[1720015317056,0.82402,60678.0,60671.0,0.48093494]
[1720015317265,0.32957,60686.0,60671.0,0.48093494]
[1720015317467,0.5744,60692.0,60665.0,0.081]
[1720015317468,0.16483,60669.0,60665.0,0.081]
[1720015317699,0.29975212,60685.0,60665.0,0.081]
[1720015317700,0.32876825,60682.0,60665.0,0.0164]
[1720015317909,0.494502,60667.0,60666.0,0.1602988]
[1720015318127,0.82417,60667.0,60666.0,0.1602988]
[1720015318879,1.153838,60667.0,60666.0,0.1602988]
[1720015319306,1.253838,60667.0,60666.0,0.1602988]
[1720015319759,1.266838,60667.0,60666.0,0.1612988]
[1720015320823,1.266838,60667.0,60666.0,0.001]
[1720015320824,1.72820255,60667.0,60666.0,0.001]
[1720015321037,1.72820255,60667.0,60659.0,0.0158]
[1720015321038,1.153971,60660.0,60659.0,0.0158]
[1720015321247,0.594559,60660.0,60659.0,0.1760988]
[1720015321492,1.253971,60660.0,60659.0,0.1760988]
[1720015321709,1.253971,60660.0,60659.0,0.1602988]
[1720015321912,0.924265,60660.0,60659.0,0.1602988]
[1720015322575,1.258971,60660.0,60659.0,0.1602988]
[1720015322784,1.264971,60660.0,60659.0,0.1602988]
[1720015323011,0.935265,60660.0,60659.0,0.1602988]
[1720015323424,0.605559,60660.0,60659.0,0.1602988]
[1720015323830,0.011,60660.0,60659.0,0.1602988]
[1720015324035,0.505559,60660.0,60659.0,0.1602988]
[1720015324495,0.164853,60660.0,60659.0,0.1602988]
[1720015324708,0.1,60671.0,60659.0,0.1602988]
[1720015324928,0.004,60660.0,60656.0,0.03123175]
[1720015325143,0.01,60660.0,60659.0,0.1602988]
[1720015325348,0.006,60660.0,60659.0,0.1602988]
[1720015325555,0.830265,60660.0,60659.0,0.1602988]
[1720015325764,0.008,60660.0,60659.0,0.1602988]
[1720015325975,0.172853,60660.0,60659.0,0.1602988]
[1720015326411,0.002,60660.0,60659.0,0.19153055]
[1720015326626,0.166853,60660.0,60659.0,0.1602988]
[1720015326839,0.826265,60660.0,60659.0,0.1602988]
[1720015327307,1.255971,60660.0,60659.0,0.1602988]
[1720015327519,2.15744525,60660.0,60659.0,0.1602988]
[1720015327772,1.831677,60660.0,60659.0,0.1602988]
[1720015327981,2.15844525,60660.0,60659.0,0.1602988]
[1720015328186,1.154125,60652.0,60651.0,0.002]
[1720015328412,1.154125,60652.0,60651.0,0.1622988]
[1720015328413,1.254125,60652.0,60651.0,0.1622988]
[1720015328631,1.583875,60652.0,60651.0,0.1622988]
[1720015328845,1.583875,60652.0,60651.0,0.002]
[1720015328846,2.03223955,60652.0,60651.0,0.002]
[1720015329069,1.70499543,60652.0,60651.0,0.002]
[1720015329286,2.03474543,60652.0,60651.0,0.002]
[1720015329503,1.70499543,60652.0,60651.0,0.002]
[1720015329919,1.70899543,60652.0,60651.0,0.002]
[1720015330587,2.03776368,60652.0,60651.0,0.002]
[1720015331068,2.06776368,60652.0,60651.0,0.002]
[1720015331276,2.95681368,60652.0,60651.0,0.00175139]
[1720015331498,2.93581368,60652.0,60651.0,0.00175139]
[1720015331698,2.92681368,60652.0,60651.0,0.00175139]
[1720015331922,2.61106368,60652.0,60651.0,0.00175139]
[1720015332140,2.62506368,60652.0,60651.0,0.00175139]
[1720015332350,1.93238355,60646.0,60644.0,0.009196]
[1720015332559,2.36216555,60646.0,60644.0,0.009196]
[1720015332790,1.15377755,60646.0,60644.0,0.009196]
[1720015333005,1.48355955,60646.0,60644.0,0.009196]
[1720015333209,1.97823255,60646.0,60644.0,0.009196]
[1720015333841,2.75845355,60645.0,60644.0,0.009196]
[1720015334072,2.85845355,60645.0,60644.0,0.009196]
[1720015334280,2.87563946,60645.0,60644.0,0.009196]
[1720015334497,2.93563946,60645.0,60644.0,0.009196]
[1720015334720,2.87563946,60645.0,60644.0,0.00418008]
[1720015334885,2.85845355,60645.0,60644.0,0.00418008]
[1720015335130,2.85835355,60645.0,60644.0,0.00418008]
[1720015335331,2.19877755,60645.0,60644.0,0.00418008]
[1720015335533,2.21277755,60645.0,60644.0,0.00418008]
[1720015336393,2.134346,60645.0,60644.0,0.00418008]
[1720015336820,0.83837,60645.0,60644.0,0.16447888]
[1720015337039,0.83837,60645.0,60644.0,0.22447888]
[1720015337040,0.508582,60645.0,60644.0,0.22447888]
[1720015337261,0.329715,60659.0,60645.0,0.06]
[1720015337262,0.329744,60653.0,60645.0,0.06]
[1720015337493,0.329744,60653.0,60644.0,0.16447888]
[1720015337494,0.2446,60660.0,60652.0,0.06]
[1720015337704,0.04895347,60679.0,60652.0,0.06]
[1720015337705,0.01391887,60666.0,60656.0,0.06]
[1720015337960,0.164858,60658.0,60657.0,0.16359522]
[1720015338181,0.164858,60658.0,60657.0,0.2202988]
[1720015338396,0.06443155,60673.0,60659.0,0.06]
[1720015338597,0.06443155,60674.0,60662.0,0.06]
[1720015338801,0.494526,60664.0,60663.0,0.1602988]
[1720015339021,1.153894,60664.0,60663.0,0.1602988]
[1720015339220,0.164875,60652.0,60651.0,0.0001]
[1720015339433,0.824375,60652.0,60651.0,0.1603988]
[1720015339634,0.494625,60652.0,60651.0,0.1603988]
[1720015339840,0.49450298,60652.0,60651.0,0.1603988]
[1720015340058,0.16475298,60652.0,60651.0,0.1603988]
[1720015340264,0.92425298,60652.0,60651.0,0.1603988]
[1720015340550,1.25400298,60652.0,60651.0,0.1603988]
[1720015341011,1.25600298,60652.0,60651.0,0.1603988]
[1720015342291,1.25600298,60652.0,60651.0,0.2203988]
[1720015342292,0.92725298,60652.0,60651.0,0.2203988]
[1720015342504,0.92625298,60652.0,60651.0,0.2203988]
[1720015342721,0.92425298,60652.0,60651.0,0.2203988]
[1720015342928,0.92925298,60652.0,60651.0,0.2203988]
[1720015343136,0.105,60652.0,60651.0,0.2203988]
[1720015343338,0.005,60652.0,60651.0,0.2203988]
[1720015343541,0.003,60652.0,60651.0,0.2203988]
[1720015343753,0.003,60652.0,60651.0,0.45926416]
[1720015343962,0.005,60652.0,60651.0,0.52286416]
[1720015344174,0.005,60652.0,60651.0,1.27624116]
[1720015344381,0.2642,60683.0,60673.0,0.06]
[1720015344382,0.48093494,60674.0,60673.0,0.06]
[1720015344599,0.64574994,60674.0,60673.0,0.2202988]
[1720015344806,0.494445,60674.0,60673.0,0.2202988]
[1720015345019,0.494445,60674.0,60673.0,0.1602988]
[1720015345020,1.153705,60674.0,60673.0,0.1602988]
[1720015345240,0.824075,60674.0,60673.0,0.1602988]
[1720015345679,1.153705,60674.0,60673.0,0.1602988]
[1720015346116,1.153705,60674.0,60673.0,0.16021302]
[1720015346535,1.253705,60674.0,60673.0,0.16021302]
[1720015347166,1.31813655,60674.0,60673.0,0.16021302]
[1720015347389,1.31813655,60674.0,60658.0,0.06]
[1720015347390,0.494566,60659.0,60658.0,0.06]
[1720015347610,0.494566,60659.0,60651.0,0.1138]
[1720015347611,0.164872,60653.0,60651.0,0.1138]
[1720015347825,0.164872,60653.0,60652.0,0.06]
[1720015347826,0.494616,60653.0,60652.0,0.06]
[1720015348069,0.494616,60653.0,60651.0,0.0001]
[1720015348070,0.164875,60652.0,60651.0,0.0001]
[1720015348280,0.329729,60656.0,60651.0,0.14025582]
[1720015348423,0.494616,60653.0,60652.0,0.06]
[1720015348634,0.329729,60656.0,60651.0,0.0001]
[1720015348635,0.329729,60656.0,60654.0,0.06]
[1720015348844,0.329729,60656.0,60651.0,0.0001]
[1720015348845,0.264857,60659.0,60658.0,0.06]
[1720015349161,0.3263,60675.0,60658.0,0.06]
[1720015349162,0.329664,60668.0,60665.0,0.06]
[1720015349357,0.329664,60668.0,60658.0,0.2729988]
[1720015349358,0.329664,60668.0,60666.0,0.1602988]
[1720015349595,0.164834,60667.0,60666.0,0.1602988]
[1720015350010,0.164834,60667.0,60666.0,0.2202988]
[1720015350207,0.494478,60670.0,60669.0,0.06]
[1720015350427,0.494478,60670.0,60669.0,0.1602988]
[1720015350640,0.82413,60670.0,60669.0,0.1602988]
[1720015351686,1.153782,60670.0,60669.0,0.1602988]
[1720015352112,1.403982,60670.0,60669.0,0.1602988]
[1720015352315,1.153782,60670.0,60669.0,0.1602988]
[1720015352441,0.499478,60670.0,60669.0,0.1602988]
[1720015352842,1.153782,60670.0,60669.0,0.1602988]
[1720015353303,1.253782,60670.0,60669.0,0.1602988]
[1720015354344,1.32521355,60670.0,60669.0,0.1602988]
[1720015354556,1.274782,60670.0,60669.0,0.1602988]
[1720015354972,1.282782,60670.0,60669.0,0.1602988]
[1720015355131,1.275782,60670.0,60669.0,0.1602988]
[1720015355331,1.34021355,60670.0,60669.0,0.1602988]
[1720015355538,1.34021355,60670.0,60658.0,0.4772]
[1720015355539,0.824277,60659.0,60658.0,0.4772]
[1720015355735,0.824375,60652.0,60651.0,0.0001]
[1720015355934,0.824375,60652.0,60651.0,0.1603988]
[1720015355935,1.254125,60652.0,60651.0,0.1603988]
[1720015356384,1.64830655,60652.0,60651.0,0.1603988]
[1720015356969,1.64830655,60652.0,60651.0,0.0001]
[1720015357576,1.583875,60652.0,60651.0,0.0001]
[1720015357971,1.254125,60652.0,60651.0,0.0001]
[1720015358201,1.254125,60652.0,60651.0,0.1603988]
[1720015358606,1.268125,60652.0,60651.0,0.1603988]
[1720015359390,1.282125,60652.0,60651.0,0.1603988]
[1720015359732,1.34655655,60652.0,60651.0,0.1603988]
[1720015360133,1.67630655,60652.0,60651.0,0.1603988]
[1720015360334,1.67630655,60652.0,60651.0,0.0001]
[1720015360335,1.66230655,60652.0,60651.0,0.0001]
[1720015360619,1.583875,60652.0,60651.0,0.0001]
[1720015360784,1.66230655,60652.0,60651.0,0.0001]
[1720015360986,1.597875,60652.0,60651.0,0.0001]
[1720015361184,1.611875,60652.0,60651.0,0.0001]
[1720015361391,1.296125,60652.0,60651.0,0.1603988]
[1720015361808,1.268125,60652.0,60651.0,0.1603988]
[1720015361985,1.282125,60652.0,60651.0,0.1603988]
[1720015362387,1.268125,60652.0,60651.0,0.1603988]
[1720015362568,0.938375,60652.0,60651.0,0.1603988]
[1720015362927,0.952375,60652.0,60651.0,0.1603988]
[1720015363352,0.938375,60652.0,60651.0,0.1603988]
[1720015363561,0.938375,60652.0,60651.0,0.2203988]
[1720015363562,0.128,60652.0,60651.0,0.2203988]
[1720015363769,0.028,60652.0,60651.0,0.2203988]
[1720015363978,0.128,60652.0,60651.0,0.2675988]
[1720015364398,0.1,60652.0,60651.0,0.2675988]
[1720015364605,0.329737,60655.0,60651.0,0.2675988]
[1720015364810,0.494625,60652.0,60651.0,0.0001]
[1720015365016,0.16488,60650.0,60649.0,0.06]
[1720015365224,0.494673,60646.0,60645.0,0.06]
[1720015365632,0.164891,60646.0,60645.0,0.06]
[1720015366674,0.005,60652.0,60651.0,0.06]
[1720015366881,0.169875,60652.0,60651.0,0.06]
[1720015367086,0.164875,60652.0,60651.0,0.06]
[1720015367504,0.164866,60655.0,60654.0,0.06]
[1720015367717,0.164875,60652.0,60650.0,0.06]
[1720015367945,0.164875,60652.0,60647.0,0.03]
[1720015368153,0.164875,60652.0,60644.0,0.1315359]
[1720015368154,0.832378,60652.0,60651.0,0.1602988]
[1720015368355,1.162131,60652.0,60651.0,0.1602988]
[1720015368765,1.22656255,60652.0,60651.0,0.1602988]
[1720015368971,1.21856255,60652.0,60651.0,0.1602988]
[1720015369175,1.483884,60652.0,60651.0,0.1602988]
[1720015369603,1.55531555,60652.0,60651.0,0.1602988]
[1720015370043,1.161131,60652.0,60651.0,0.1602988]
[1720015370287,1.22556255,60652.0,60651.0,0.1602988]
[1720015370507,1.92351555,60652.0,60651.0,0.1602988]
[1720015370730,1.93860704,60652.0,60651.0,0.1602988]
[1720015370939,0.61959804,60652.0,60651.0,0.1]
[1720015371139,1.28709804,60652.0,60651.0,0.1]
[1720015371353,1.35664804,60652.0,60651.0,0.2602988]
[1720015372172,1.67264804,60652.0,60651.0,0.1]
[1720015372396,2.07632298,60652.0,60651.0,0.1]
[1720015372564,2.07663066,60652.0,60651.0,0.1001]
[1720015373017,2.09459552,60652.0,60651.0,0.1001]
[1720015373225,2.10759552,60652.0,60651.0,0.1001]
[1720015373451,2.00900684,60652.0,60651.0,0.1001]
[1720015373662,2.00100684,60652.0,60651.0,0.1001]
[1720015373869,2.10059552,60652.0,60651.0,0.1001]
[1720015374297,2.00200684,60652.0,60651.0,0.1001]
[1720015374516,2.11458728,60652.0,60651.0,0.1001]
[1720015374733,2.01600684,60652.0,60651.0,0.1001]
[1720015374942,1.54847755,60645.0,60644.0,0.00418008]
[1720015375160,2.02755815,60645.0,60644.0,0.0843359]
[1720015375369,2.05163027,60645.0,60644.0,0.0843359]
[1720015375511,1.67254967,60645.0,60644.0,0.0843359]
[1720015375718,1.69776693,60645.0,60644.0,0.0843359]
[1720015375967,1.72169393,60645.0,60644.0,0.0843359]
[1720015376260,1.67240455,60645.0,60644.0,0.0843359]
[1720015376682,1.68640455,60645.0,60644.0,0.0843359]
[1720015377045,1.74968788,60645.0,60644.0,0.00418008]
[1720015377246,1.73568788,60645.0,60644.0,0.00418008]
[1720015377456,1.70040455,60645.0,60644.0,0.00418008]
[1720015377866,1.71440455,60645.0,60644.0,0.00418008]
[1720015378209,1.76368788,60645.0,60644.0,0.00418008]
[1720015378414,1.78823862,60645.0,60644.0,0.00418008]
[1720015378979,1.71434193,60645.0,60644.0,0.00418008]
[1720015379205,2.07805066,60645.0,60644.0,0.00418008]
[1720015379408,2.14007333,60645.0,60644.0,0.00418008]
[1720015379608,2.07805066,60645.0,60644.0,0.00418008]
[1720015379781,2.69615066,60645.0,60644.0,0.00418008]
[1720015379985,2.75839642,60645.0,60644.0,0.00418008]
[1720015380266,2.71278375,60645.0,60644.0,0.00418008]
[1720015380472,2.32074999,60645.0,60644.0,0.00418008]
[1720015380684,2.44399074,60645.0,60644.0,0.00418008]
[1720015380887,2.27874999,60645.0,60644.0,0.00418008]
[1720015381245,2.29274999,60645.0,60644.0,0.00418008]
[1720015381448,3.0885921,60645.0,60644.0,0.00418008]
[1720015381625,3.0050041,60645.0,60644.0,0.00418008]
[1720015382011,3.0190041,60645.0,60644.0,0.00418008]
[1720015382531,2.6891161,60645.0,60644.0,0.00418008]
[1720015382732,2.81234466,60645.0,60644.0,0.00418008]
[1720015382955,2.73607855,60645.0,60644.0,0.00418008]
[1720015383331,2.61284999,60645.0,60644.0,0.00418008]
[1720015383519,3.05520211,60645.0,60644.0,0.00418008]
[1720015383740,3.1414459,60645.0,60644.0,0.00418008]
[1720015383950,3.07821734,60645.0,60644.0,0.00418008]
[1720015384797,3.07777969,60645.0,60644.0,0.00418008]
[1720015385204,3.07827492,60645.0,60644.0,0.00418008]
[1720015385754,3.07817492,60645.0,60644.0,0.00418008]
[1720015386334,3.01817492,60645.0,60644.0,0.00418008]
[1720015386619,3.40796292,60645.0,60644.0,0.00418008]
[1720015386827,3.40796292,60645.0,60640.0,0.0122512]
[1720015386828,0.12443155,60641.0,60640.0,0.0122512]
[1720015387025,0.12443155,60641.0,60625.0,0.4772]
[1720015387026,0.28936055,60632.0,60625.0,0.4772]
[1720015387234,1.42937786,60632.0,60622.0,0.009174]
[1720015387449,2.41895186,60632.0,60622.0,0.009174]
[1720015387670,2.87191661,60632.0,60622.0,0.009174]
[1720015387905,2.87266461,60632.0,60622.0,0.009174]
[1720015388336,2.74955799,60632.0,60622.0,0.009174]
[1720015388561,2.76355799,60632.0,60622.0,0.009174]
[1720015388775,2.82338951,60632.0,60622.0,0.009174]
[1720015388998,2.83738951,60632.0,60622.0,0.009174]
[1720015389212,2.76355799,60632.0,60622.0,0.009174]
[1720015389430,1.814312,60629.0,60622.0,0.08932982]
[1720015389665,2.00289283,60629.0,60622.0,0.08932982]
[1720015389861,1.67291783,60629.0,60622.0,0.08932982]
[1720015390660,2.38079283,60629.0,60622.0,0.009174]
[1720015391038,2.41599077,60629.0,60622.0,0.009174]
[1720015391237,0.61929155,60623.0,60622.0,0.009174]
[1720015391352,1.79624781,60623.0,60622.0,0.009174]
[1720015391555,2.68767583,60623.0,60622.0,0.009174]
[1720015392611,2.68767583,60623.0,60622.0,0.004174]
[1720015392823,2.26886555,60622.0,60621.0,0.0006089]
[1720015393024,0.22941455,60612.0,60601.0,0.08934082]
[1720015393225,1.36819783,60612.0,60601.0,0.08934082]
[1720015393469,2.35809883,60612.0,60601.0,0.009185]
[1720015393650,2.68806583,60612.0,60601.0,0.009185]
[1720015394062,2.94220712,60612.0,60601.0,0.009185]
[1720015394301,2.60128766,60611.0,60601.0,0.009185]
[1720015394524,2.70554612,60611.0,60610.0,0.00732726]
[1720015395758,2.71954612,60611.0,60610.0,0.00732726]
[1720015396167,2.71954612,60611.0,60610.0,2.6e-07]
[1720015396408,2.71954612,60611.0,60604.0,0.00243836]
[1720015396409,0.55943855,60605.0,60604.0,0.00243836]
[1720015396617,1.64023912,60605.0,60604.0,0.00074271]
[1720015396883,2.30024912,60605.0,60604.0,0.00074271]
[1720015397270,2.30052952,60605.0,60604.0,0.00074271]
[1720015397646,2.28815855,60605.0,60604.0,0.00074271]
[1720015397864,2.27415855,60605.0,60604.0,0.00074271]
[1720015398068,2.33415855,60605.0,60604.0,0.00074271]
[1720015398280,2.64416418,60605.0,60604.0,0.00074271]
[1720015398531,2.69016418,60605.0,60604.0,0.00074271]
[1720015398903,2.70416418,60605.0,60604.0,0.00074271]
[1720015399351,0.06,60599.0,60598.0,1e-06]
[1720015399558,1.1703932,60599.0,60598.0,1e-06]
[1720015399792,2.3780512,60599.0,60598.0,1e-06]
[1720015400018,2.9715072,60599.0,60598.0,1e-06]
[1720015400233,2.7140452,60599.0,60598.0,1e-06]
[1720015400700,2.73801428,60599.0,60598.0,1e-06]
[1720015400909,2.34797628,60599.0,60598.0,1e-06]
[1720015401136,1.62264543,60599.0,60598.0,1e-06]
[1720015401348,1.66350255,60599.0,60598.0,1e-06]
[1720015401986,1.66350255,60599.0,60590.0,0.009185]
[1720015401987,1.54965055,60593.0,60590.0,0.009185]
[1720015402200,1.215266,60592.0,60590.0,0.009185]
[1720015402415,0.61945455,60591.0,60590.0,0.009185]
[1720015402626,2.03978255,60591.0,60590.0,1e-06]
[1720015402836,2.30986455,60591.0,60590.0,1e-06]
[1720015403036,2.36976455,60591.0,60590.0,1e-06]
[1720015403268,2.36976455,60591.0,60583.0,1e-06]
[1720015403269,1.60987155,60584.0,60583.0,1e-06]
[1720015403477,2.18876555,60580.0,60579.0,0.0122512]
[1720015403747,2.18876555,60580.0,60559.0,0.1473]
[1720015403748,0.88979355,60572.0,60559.0,0.1473]
[1720015403974,1.61467855,60572.0,60559.0,0.1473]
[1720015404185,1.65016355,60572.0,60560.0,0.00330207]
[1720015404437,0.265092,60572.0,60571.0,0.2222988]
[1720015404672,0.265092,60572.0,60571.0,0.4350988]
[1720015404673,0.1,60572.0,60571.0,0.4350988]
[1720015404867,0.39442855,60589.0,60579.0,0.06]
[1720015404868,0.330141,60580.0,60579.0,0.06]
[1720015405084,0.330141,60580.0,60579.0,0.2202988]
[1720015405085,0.495211,60580.0,60579.0,0.2202988]
[1720015405296,0.38720083,60591.0,60580.0,0.06]
[1720015405297,0.330091,60590.0,60580.0,0.06]
[1720015405551,0.014,60591.0,60581.0,0.1602988]
[1720015405552,0.165065,60582.0,60581.0,0.1602988]
[1720015405758,0.495196,60582.0,60581.0,0.1602988]
[1720015405973,0.165065,60582.0,60581.0,0.1602988]
[1720015406218,0.330124,60584.0,60583.0,0.06]
[1720015406219,0.16506,60584.0,60583.0,0.06]
[1720015406431,0.49518,60584.0,60583.0,0.2202988]
[1720015406669,0.330099,60588.0,60587.0,0.06]
[1720015406670,0.165049,60588.0,60587.0,0.06]
[1720015406868,0.165039,60592.0,60591.0,0.06]
[1720015407097,0.330006,60605.0,60596.0,0.06]
[1720015407443,0.165013,60601.0,60600.0,0.06]
[1720015407647,0.33,60606.0,60600.0,0.1602988]
[1720015407854,0.06433155,60618.0,60604.0,0.06]
[1720015408063,0.57102,60621.0,60604.0,0.06]
[1720015408064,0.495009,60605.0,60604.0,0.06]
[1720015408441,0.329965,60613.0,60607.0,0.06]
[1720015408814,0.2947,60624.0,60616.0,0.0655]
[1720015409031,0.2947,60624.0,60617.0,0.1602988]
[1720015409259,0.494902,60618.0,60617.0,0.2202988]
[1720015409728,0.164967,60618.0,60617.0,0.21736837]
[1720015409959,0.824837,60618.0,60617.0,0.15736837]
[1720015410176,0.329923,60621.0,60609.0,0.5372]
[1720015410177,0.494967,60610.0,60609.0,0.5372]
[1720015410404,0.824945,60610.0,60609.0,0.1602988]
[1720015410598,1.154923,60610.0,60609.0,0.1602988]
[1720015410718,1.21925455,60610.0,60609.0,0.1602988]
[1720015410925,0.825027,60604.0,60603.0,0.1473]
[1720015411292,1.155038,60604.0,60603.0,0.3075988]
[1720015411496,1.21936955,60604.0,60603.0,0.1602988]
[1720015411707,1.155038,60604.0,60603.0,0.1602988]
[1720015411903,0.825027,60604.0,60603.0,0.1602988]
[1720015412122,1.155038,60604.0,60603.0,0.1602988]
[1720015412319,1.485049,60604.0,60603.0,0.1602988]
[1720015412570,1.155038,60604.0,60603.0,0.1602988]
[1720015412814,1.169038,60604.0,60603.0,0.1602988]
[1720015413237,0.839027,60604.0,60603.0,0.2202988]
[1720015413440,1.169038,60604.0,60603.0,0.1602988]
[1720015413865,1.23336955,60604.0,60603.0,0.1602988]
[1720015414086,0.88942655,60599.0,60598.0,0.0001]
[1720015414296,1.18412655,60599.0,60598.0,0.0001]
[1720015414504,1.449833,60599.0,60598.0,0.0001]
[1720015414928,1.449833,60599.0,60598.0,0.1603988]
[1720015414929,1.119795,60599.0,60598.0,0.1603988]
[1720015415133,0.825095,60599.0,60598.0,0.1603988]
[1720015415543,1.155133,60599.0,60598.0,0.0001]
[1720015415747,1.51416455,60599.0,60598.0,0.0001]
[1720015415955,1.94420255,60599.0,60598.0,0.0001]
[1720015416155,2.36536144,60599.0,60598.0,0.0001]
[1720015416384,2.36536144,60599.0,60580.0,0.4772]
[1720015416385,1.155476,60581.0,60580.0,0.4772]
[1720015416620,1.450176,60581.0,60580.0,0.1602988]
[1720015416969,1.155476,60581.0,60580.0,0.1602988]
[1720015417381,0.82534,60581.0,60580.0,0.1602988]
[1720015418145,0.83934,60581.0,60580.0,0.1602988]
[1720015418762,0.509204,60581.0,60580.0,0.1602988]
[1720015418975,0.495204,60581.0,60580.0,0.2202988]
[1720015419191,0.510204,60581.0,60580.0,0.1602988]
[1720015419387,0.84034,60581.0,60580.0,0.1602988]
[1720015419797,1.170476,60581.0,60580.0,0.1602988]
[1720015420463,1.163476,60581.0,60580.0,0.1602988]
[1720015420668,1.155476,60581.0,60580.0,0.1602988]
[1720015420870,0.83034,60581.0,60580.0,0.1602988]
[1720015421078,0.83634,60581.0,60580.0,0.1602988]
[1720015421306,0.83034,60581.0,60580.0,0.1602988]
[1720015421547,0.495204,60581.0,60580.0,0.1602988]
[1720015421746,0.509204,60581.0,60580.0,0.1603988]
[1720015421969,1.161476,60581.0,60580.0,0.1603988]
[1720015422401,1.169476,60581.0,60580.0,0.1603988]
[1720015423051,0.179068,60581.0,60580.0,0.1603988]
[1720015423243,0.83934,60581.0,60580.0,0.1603988]
[1720015423859,0.84534,60581.0,60580.0,0.1603988]
[1720015424015,0.85834,60581.0,60580.0,0.1603988]
[1720015424242,1.188476,60581.0,60580.0,0.1603988]
[1720015424673,1.175476,60581.0,60580.0,0.1603988]
[1720015424876,1.180476,60581.0,60580.0,0.1603988]
[1720015425242,1.160476,60581.0,60580.0,0.1603988]
[1720015425443,1.155476,60581.0,60580.0,0.1603988]
[1720015425740,1.165476,60581.0,60580.0,0.1603988]
[1720015425945,1.174476,60581.0,60580.0,0.1603988]
[1720015426614,1.23880755,60581.0,60580.0,0.1603988]
[1720015427390,1.165476,60581.0,60580.0,0.1603988]
[1720015427802,1.178476,60581.0,60580.0,0.1603988]
[1720015428012,1.168476,60581.0,60580.0,0.1603988]
[1720015428336,1.23280755,60581.0,60580.0,0.1603988]
[1720015428910,1.66294355,60581.0,60580.0,0.1603988]
[1720015429198,1.98743289,60581.0,60580.0,0.0001]
[1720015429589,2.00143289,60581.0,60580.0,0.0001]
[1720015429954,2.33156889,60581.0,60580.0,0.0001]
[1720015430378,2.72170489,60581.0,60580.0,0.0001]
[1720015430579,2.66170489,60581.0,60580.0,0.0001]
[1720015430773,2.63470489,60581.0,60580.0,0.0001]
[1720015431001,2.224448,60581.0,60580.0,0.0001]
[1720015431215,2.66212323,60581.0,60580.0,0.0001]
[1720015431637,1.155742,60567.0,60566.0,0.475224]
[1720015431828,1.155742,60567.0,60566.0,0.1602988]
[1720015432284,0.82553,60567.0,60566.0,0.1602988]
[1720015432487,0.82553,60567.0,60566.0,0.2202988]
[1720015432892,0.495318,60567.0,60566.0,0.1602988]
[1720015433000,0.495318,60567.0,60566.0,0.2202988]
[1720015433407,0.496318,60567.0,60566.0,0.2202988]
[1720015433838,0.496318,60567.0,60566.0,0.1602988]
[1720015434567,0.82653,60567.0,60566.0,0.1602988]
[1720015434790,1.22097355,60567.0,60566.0,0.1602988]
[1720015435200,1.22097355,60567.0,60558.0,0.0655]
[1720015435201,1.55218555,60567.0,60558.0,0.0655]
[1720015435373,1.155896,60559.0,60558.0,0.0655]
[1720015435979,1.155896,60559.0,60558.0,0.2857988]
[1720015435980,0.165128,60559.0,60558.0,0.2857988]
[1720015436177,0.06433155,60567.0,60558.0,0.2257988]
[1720015436402,0.82564,60559.0,60558.0,0.0655]
[1720015436578,0.495384,60559.0,60558.0,0.2857988]
[1720015436786,0.82564,60559.0,60558.0,0.2857988]
[1720015436994,0.166106,60567.0,60566.0,0.06]
[1720015437189,0.166106,60567.0,60566.0,0.2303]
[1720015437190,0.001,60567.0,60566.0,0.2303]
[1720015437396,0.001,60567.0,60566.0,0.3905988]
[1720015437991,0.166106,60567.0,60566.0,0.3905988]
[1720015438433,0.82553,60567.0,60566.0,0.1602988]
[1720015438814,1.164742,60567.0,60566.0,0.1603988]